bitfinex/quotes_ETHUSD_20250213
["timestamp","ask_amount","ask_price","bid_price","bid_amount"]
[1739445033586,2.01985875,2680.7,2680.3,7.46164]
[1739445033911,2.01985875,2680.7,2680.4,3.73078]
[1739445034415,2.01985875,2680.7,2680.3,7.46161]
[1739445034714,2.01985875,2680.7,2680.3,3.73079]
[1739445034919,2.67219563,2680.7,2680.3,3.73079]
[1739445035876,2.01985875,2680.7,2680.3,3.73079]
[1739445036711,0.07221137,2680.6,2680.3,3.73079]
[1739445036916,5.35221137,2680.6,2680.3,3.73079]
[1739445037571,5.35221137,2680.6,2680.4,3.73066]
[1739445039923,0.8117,2680.5,2680.2,3.73096]
[1739445040124,0.8117,2680.5,2680.3,3.73086]
[1739445040295,0.06692805,2680.4,2680.3,3.73086]
[1739445040678,0.06692805,2680.4,2680.3,4.477042]
[1739445041191,5.28,2680.6,2680.4,3.73065]
[1739445041884,5.28,2680.6,2680.5,3.73064]
[1739445042842,0.8142,2681.0,2680.7,3.7303]
[1739445043199,0.8142,2681.0,2680.5,3.73064]
[1739445043448,0.8142,2681.0,2680.6,3.73049]
[1739445044332,0.8142,2681.0,2680.5,3.73064]
[1739445044536,0.8142,2681.0,2680.4,0.2646]
[1739445044853,0.8142,2681.0,2680.5,3.73054]
[1739445044854,4.54415,2681.0,2680.5,3.73054]
[1739445045185,4.54415,2681.0,2680.6,3.73048]
[1739445045838,0.8142,2681.0,2680.7,3.73029]
[1739445046256,0.8142,2681.0,2680.6,3.7305]
[1739445047124,0.8142,2681.0,2680.7,3.73033]
[1739445047344,0.8142,2681.0,2680.6,3.7305]
[1739445047521,0.8142,2681.0,2680.7,3.73035]
[1739445048127,0.8142,2681.0,2680.4,0.2646]
[1739445048312,0.8142,2681.0,2680.7,3.73034]
[1739445048514,0.8142,2681.0,2680.6,3.7305]
[1739445049262,0.8142,2681.0,2680.7,3.73034]
[1739445050030,0.8142,2681.0,2680.9,3.73009]
[1739445051671,0.87713898,2681.0,2680.9,3.73009]
[1739445051841,0.06293898,2681.0,2680.9,4.476119]
[1739445052553,0.06293898,2681.0,2680.9,0.746029]
[1739445052753,0.06293898,2681.0,2680.9,3.73009]
[1739445053581,5.28,2681.1,2681.0,3.72995]
[1739445054133,0.7924,2681.3,2681.1,3.72981]
[1739445054385,6.0664,2681.5,2681.2,3.7296]
[1739445054554,6.3354,2681.5,2681.2,3.7296]
[1739445057700,6.3354,2681.5,2681.1,3.72974]
[1739445058036,10.06466,2681.5,2681.0,4.04322474]
[1739445058243,3.72939,2681.4,2681.1,0.43078247]
[1739445058439,3.72939,2681.4,2681.0,0.31329474]
[1739445059591,6.3354,2681.5,2681.1,3.72972]
[1739445059812,3.72946,2681.4,2681.0,0.31329474]
[1739445060898,6.3354,2681.5,2681.0,4.04320474]
[1739445061102,10.06465,2681.5,2681.1,4.13413047]
[1739445061247,0.8155,2681.4,2680.8,3.73015]
[1739445061611,0.8155,2681.2,2680.8,3.73015]
[1739445061761,4.54517,2681.2,2680.8,3.73015]
[1739445062164,4.54517,2681.2,2680.6,3.73039]
[1739445062501,4.53913113,2681.1,2680.6,3.73039]
[1739445063450,4.53913113,2681.1,2680.7,3.73036]
[1739445063649,4.53913113,2681.1,2680.6,3.73039]
[1739445063650,9.81913113,2681.1,2680.6,3.73039]
[1739445063849,9.81913113,2681.1,2680.6,7.46081]
[1739445064050,9.81913113,2681.1,2680.7,3.73034]
[1739445064565,9.81913113,2681.1,2680.4,0.75486909]
[1739445064810,6.08925113,2681.1,2680.5,0.40194691]
[1739445064994,3.73015,2680.9,2680.4,3.73067]
[1739445065192,3.73022,2680.8,2679.5,0.2709]
[1739445065527,0.7665,2680.2,2679.7,3.73164]
[1739445065835,1.0355,2680.2,2679.9,3.73147]
[1739445066039,0.05763052,2680.1,2679.8,3.73152]
[1739445067106,0.816,2680.0,2679.6,4.04575474]
[1739445067307,0.816,2680.0,2679.4,6.60042744]
[1739445067508,0.05742255,2679.9,2679.4,3.73208]
[1739445067845,0.05742255,2679.9,2679.4,7.46418]
[1739445068346,0.05742255,2679.9,2679.4,3.73208]
[1739445068492,3.73162,2679.8,2679.2,7.00328]
[1739445068725,4.50021,2679.7,2679.2,0.98716274]
[1739445069230,0.05742255,2679.6,2679.2,0.98716274]
[1739445069430,0.05742255,2679.6,2679.2,4.71953274]
[1739445069972,0.05742255,2679.6,2679.2,8.45190274]
[1739445070284,0.05742255,2679.6,2679.2,4.71953274]
[1739445070430,0.05742255,2679.6,2679.3,4.50423327]
[1739445070632,0.05742255,2679.6,2679.4,3.73209]
[1739445071483,0.05742255,2679.6,2679.3,0.77195327]
[1739445071626,0.05742255,2679.6,2679.4,3.73209]
[1739445072528,5.33742255,2679.6,2679.4,3.73209]
[1739445073175,5.33742255,2679.6,2679.3,4.50424327]
[1739445073932,5.33742255,2679.6,2679.3,0.77195327]
[1739445074480,5.33742255,2679.6,2679.2,4.71957274]
[1739445074680,5.33742255,2679.6,2679.3,3.73231]
[1739445074884,5.33742255,2679.6,2679.4,3.73208]
[1739445075029,5.33742255,2679.6,2679.3,7.46455]
[1739445075372,5.33742255,2679.6,2679.4,3.73216]
[1739445076075,5.33742255,2679.6,2679.2,4.71951274]
[1739445076289,5.33742255,2679.6,2679.2,4.71959274]
[1739445076876,9.06935255,2679.6,2679.2,4.71959274]
[1739445077080,9.06935255,2679.6,2679.2,3.73243]
[1739445079334,3.73204,2679.5,2679.1,3.0]
[1739445079561,0.768,2679.4,2679.1,3.0]
[1739445079781,0.82450915,2679.4,2679.1,3.0]
[1739445080651,0.82450915,2679.4,2679.1,6.7325]
[1739445081889,0.82450915,2679.4,2678.9,3.73286]
[1739445082040,6.10450915,2679.4,2679.0,3.73269]
[1739445082891,6.10450915,2679.4,2678.9,3.73286]
[1739445083183,6.10450915,2679.4,2679.0,3.73272]
[1739445083761,6.10450915,2679.4,2679.1,3.73258]
[1739445083915,6.10450915,2679.4,2678.9,3.73278]
[1739445083916,6.10450915,2679.4,2679.0,3.73272]
[1739445085320,6.10450915,2679.4,2679.0,3.73273]
[1739445085515,6.10450915,2679.4,2679.1,3.7325]
[1739445086715,9.83669915,2679.4,2679.0,3.73269]
[1739445086925,6.10450915,2679.4,2679.1,3.73254]
[1739445087213,0.8155,2679.3,2678.8,3.7329]
[1739445087540,0.32427119,2679.2,2678.8,3.7329]
[1739445089071,0.32427119,2679.2,2678.8,7.46583]
[1739445089816,0.32427119,2679.2,2678.9,3.73282]
[1739445090318,5.60427119,2679.2,2678.8,3.7329]
[1739445092008,5.60427119,2679.2,2678.8,7.46583]
[1739445092170,5.60427119,2679.2,2679.0,3.73261]
[1739445092574,5.60427119,2679.2,2678.8,3.73296]
[1739445092879,5.60427119,2679.2,2678.9,3.73283]
[1739445093324,5.60427119,2679.2,2678.9,3.73287]
[1739445093628,5.60427119,2679.2,2678.8,3.73296]
[1739445093804,5.60427119,2679.2,2679.0,3.73271]
[1739445094209,0.27,2679.1,2679.0,3.73271]
[1739445094592,0.05413998,2679.1,2679.0,4.479267]
[1739445096007,0.05413998,2679.1,2679.0,3.73271]
[1739445096234,0.05413998,2679.1,2678.9,3.73286]
[1739445099522,0.05413998,2679.1,2678.9,3.73279]
[1739445099691,0.05413998,2679.1,2679.0,3.73273]
[1739445101229,0.05413998,2679.1,2678.9,3.73279]
[1739445101524,0.05413998,2679.1,2678.9,3.73277]
[1739445101827,0.05413998,2679.1,2679.0,3.73273]
[1739445103617,0.05413998,2679.1,2679.0,4.00363]
[1739445105258,0.05413998,2679.1,2679.0,3.73273]
[1739445105426,0.05413998,2679.1,2678.9,3.73276]
[1739445106736,0.05413998,2679.1,2679.0,3.73273]
[1739445109987,0.05413998,2679.1,2678.9,3.73276]
[1739445110131,0.05413998,2679.1,2679.0,3.73273]
[1739445111779,0.05413998,2679.1,2678.9,3.73276]
[1739445111984,0.05413998,2679.1,2679.0,3.73273]
[1739445113283,0.02941093,2679.1,2679.0,3.73273]
[1739445113590,0.05033234,2679.1,2679.0,3.73273]
[1739445120720,0.05033234,2679.1,2679.0,4.479279]
[1739445122034,0.05033234,2679.1,2679.0,0.746549]
[1739445122242,0.05033234,2679.1,2678.9,3.73276]
[1739445122535,0.05033234,2679.1,2678.7,3.73305]
[1739445122737,3.78298234,2679.1,2678.6,3.75690737]
[1739445122959,3.78298234,2679.1,2678.3,3.73359]
[1739445123092,0.7893,2678.5,2677.8,0.2709]
[1739445123437,0.7893,2678.5,2678.1,3.73396]
[1739445123623,0.04727987,2678.4,2678.2,3.73384]
[1739445125341,0.04727987,2678.4,2678.0,3.73402]
[1739445125549,0.8145,2678.3,2677.9,3.73416]
[1739445125728,0.8145,2678.3,2677.9,7.46834]
[1739445126039,0.04710785,2678.2,2677.9,3.73416]
[1739445126238,0.04710785,2678.2,2678.0,3.73407]
[1739445126541,0.04677746,2678.1,2677.9,3.73413]
[1739445126696,0.04677746,2678.1,2678.0,3.73412]
[1739445126899,0.8145,2678.3,2678.0,3.73412]
[1739445127242,0.04672764,2678.2,2678.0,3.73412]
[1739445127541,0.8145,2678.3,2678.0,3.73402]
[1739445127758,0.04606335,2678.2,2678.0,3.73402]
[1739445128037,0.04606335,2678.2,2678.1,3.73399]
[1739445128544,0.8145,2678.3,2678.1,3.73399]
[1739445128840,0.04606335,2678.2,2678.1,3.73399]
[1739445129198,0.8145,2678.3,2678.1,3.73399]
[1739445129392,0.04606335,2678.2,2678.1,3.73399]
[1739445129849,0.8145,2678.3,2678.2,3.73385]
[1739445130189,0.86056335,2678.3,2678.2,3.73385]
[1739445130726,0.86056335,2678.3,2678.1,3.73399]
[1739445131042,0.86056335,2678.3,2678.1,3.73392]
[1739445131245,0.86056335,2678.3,2678.2,3.73385]
[1739445131539,0.86056335,2678.3,2678.1,3.73392]
[1739445131846,0.86056335,2678.3,2678.1,3.73391]
[1739445133245,0.86056335,2678.3,2678.2,3.73385]
[1739445133410,0.04606335,2678.3,2678.2,4.480626]
[1739445133819,5.28,2678.5,2678.4,3.73357]
[1739445134033,0.27,2678.7,2678.4,3.73357]
[1739445134342,0.27,2678.7,2678.3,3.7337]
[1739445134547,0.04606335,2678.6,2678.4,3.7335]
[1739445134749,0.04606335,2678.6,2678.0,0.2709]
[1739445134896,0.04606335,2678.6,2678.5,3.73343]
[1739445135903,0.8151,2678.8,2678.6,3.73325]
[1739445136135,0.04615392,2678.7,2678.4,0.2709]
[1739445136404,5.28,2678.9,2678.4,0.2709]
[1739445136405,5.28,2678.9,2678.7,3.73312]
[1739445136799,5.28,2678.9,2678.8,3.73301]
[1739445137610,5.28,2678.9,2678.7,3.73312]
[1739445137812,6.3059,2679.0,2678.7,3.73312]
[1739445138017,6.3059,2679.0,2678.7,7.46616]
[1739445138246,6.3059,2679.0,2678.7,3.73304]
[1739445139015,1.0259,2679.0,2678.8,3.73288]
[1739445139201,1.0259,2679.0,2678.7,3.73304]
[1739445139649,1.0259,2679.0,2678.8,3.7329]
[1739445140951,0.27,2679.2,2679.0,3.73263]
[1739445141245,0.27,2679.2,2678.9,7.46564]
[1739445141448,0.27,2679.2,2678.9,3.73277]
[1739445141751,0.04638477,2679.1,2678.9,3.73277]
[1739445141946,0.8165,2679.0,2678.9,3.73277]
[1739445142153,0.86298887,2679.0,2678.5,3.0]
[1739445142449,0.86298887,2679.0,2678.9,3.73287]
[1739445143252,0.86298887,2679.0,2678.6,0.96018874]
[1739445143400,4.59579887,2679.0,2678.6,0.96018874]
[1739445143743,0.86298887,2679.0,2678.5,4.49510669]
[1739445143946,0.86298887,2679.0,2678.6,3.7332]
[1739445147739,0.86298887,2679.0,2678.7,3.73309]
[1739445148174,0.86298887,2679.0,2678.7,7.46617]
[1739445148514,0.86298887,2679.0,2678.7,3.73306]
[1739445149127,0.86298887,2679.0,2678.8,3.73301]
[1739445149488,0.86298887,2679.0,2678.7,3.73306]
[1739445149713,0.86298887,2679.0,2678.8,3.73289]
[1739445150164,0.04648887,2679.0,2678.9,3.73287]
[1739445150714,1.033,2679.3,2678.9,3.73287]
[1739445150869,0.04662918,2679.2,2678.9,3.73287]
[1739445151068,1.033,2679.3,2678.9,7.46566]
[1739445151269,1.033,2679.3,2679.0,3.73272]
[1739445151270,0.04662918,2679.2,2679.0,3.73272]
[1739445151589,1.033,2679.3,2678.9,3.73286]
[1739445151819,0.04496385,2679.1,2678.9,3.73286]
[1739445151968,1.033,2679.3,2678.9,4.5541125]
[1739445152169,0.04331209,2679.0,2678.9,3.73286]
[1739445152368,1.033,2679.3,2678.6,3.2709]
[1739445152592,0.04331209,2679.0,2678.9,3.73281]
[1739445152801,1.033,2679.3,2678.9,3.73281]
[1739445153113,1.033,2679.3,2678.8,3.73299]
[1739445153114,4.76532,2679.3,2678.8,3.73299]
[1739445153297,0.04331209,2679.2,2678.8,3.73293]
[1739445153622,1.033,2679.3,2678.9,3.73287]
[1739445153769,0.04334377,2679.1,2678.9,3.73287]
[1739445153968,0.763,2679.3,2678.9,3.73287]
[1739445154204,0.04334377,2679.0,2678.9,3.73287]
[1739445154411,1.033,2679.3,2678.9,3.73287]
[1739445154905,0.0433302,2679.2,2678.9,3.73287]
[1739445155299,1.033,2679.3,2678.9,3.73287]
[1739445155619,0.0433302,2679.2,2679.0,3.73272]
[1739445155915,6.313,2679.3,2679.0,3.73272]
[1739445156218,0.0433302,2679.2,2679.0,3.73272]
[1739445156587,6.313,2679.3,2679.0,3.73272]
[1739445156791,0.04178221,2679.1,2679.0,3.73272]
[1739445156990,6.313,2679.3,2679.0,4.479278]
[1739445157220,0.04179578,2679.1,2679.0,3.73272]
[1739445157426,6.313,2679.3,2679.1,3.73259]
[1739445157571,6.313,2679.3,2679.0,3.73271]
[1739445158481,6.313,2679.3,2678.9,3.73286]
[1739445158688,6.313,2679.3,2679.0,3.73271]
[1739445159578,6.313,2679.3,2678.9,3.73286]
[1739445160051,6.313,2679.3,2679.0,3.73267]
[1739445161941,6.313,2679.3,2679.0,3.73266]
[1739445162441,6.043,2679.3,2679.2,3.73245]
[1739445163387,5.28,2679.3,2679.2,3.73245]
[1739445165104,5.28,2679.3,2679.1,3.73258]
[1739445165390,5.28,2679.3,2679.2,3.73245]
[1739445166169,5.28,2679.3,2679.1,3.73258]
[1739445166585,5.28,2679.3,2679.0,3.73272]
[1739445167596,0.269,2679.4,2679.0,3.73272]
[1739445167743,0.269,2679.4,2679.0,3.73265]
[1739445167943,0.269,2679.4,2679.1,3.73256]
[1739445169900,0.269,2679.4,2679.0,4.18017999]
[1739445170091,0.78,2679.4,2679.0,3.73265]
[1739445170281,4.51222,2679.4,2679.0,3.73265]
[1739445170596,4.51222,2679.4,2678.9,3.7328]
[1739445170947,4.51222,2679.4,2679.0,3.73268]
[1739445171263,0.78,2679.4,2679.1,3.73259]
[1739445171679,0.04197678,2679.3,2679.1,3.73259]
[1739445172301,0.04197678,2679.3,2679.0,3.73272]
[1739445172783,0.04197678,2679.3,2679.1,3.7325]
[1739445173497,5.32197678,2679.3,2679.1,3.7325]
[1739445173694,5.32197678,2679.3,2679.2,3.73245]
[1739445174066,5.32197678,2679.3,2679.1,3.73258]
[1739445174663,5.32197678,2679.3,2679.2,3.73245]
[1739445175066,5.32197678,2679.3,2679.1,3.73259]
[1739445175381,5.32197678,2679.3,2679.1,4.105729]
[1739445175582,5.32197678,2679.3,2679.2,3.73245]
[1739445176997,5.32197678,2679.3,2679.1,0.373259]
[1739445177156,5.32197678,2679.3,2679.2,3.73245]
[1739445178607,5.32197678,2679.3,2679.1,3.73257]
[1739445179180,5.32197678,2679.3,2679.2,3.73245]
[1739445179571,0.04197678,2679.3,2679.2,3.73245]
[1739445179772,1.1011,2679.6,2679.1,4.00347]
[1739445179773,0.8321,2679.6,2679.1,0.2709]
[1739445180111,5.28,2679.7,2679.2,4.04637474]
[1739445180112,0.04021303,2679.3,2679.2,4.04637474]
[1739445180419,5.549,2679.7,2679.4,3.73208]
[1739445180596,5.549,2679.7,2679.5,3.73191]
[1739445181064,5.549,2679.7,2679.3,3.73219]
[1739445181395,4.5394,2679.6,2679.1,3.73248]
[1739445181814,3.73204,2679.5,2679.1,3.73248]
[1739445182112,0.8075,2679.6,2679.1,3.73248]
[1739445182318,3.73211,2679.5,2679.0,3.73265]
[1739445182616,0.7708,2679.4,2679.0,3.73267]
[1739445183410,0.7708,2679.4,2679.1,3.73246]
[1739445186267,0.7708,2679.4,2679.2,3.73237]
[1739445186469,5.28,2679.6,2679.2,3.73237]
[1739445186470,6.0562,2679.6,2679.2,3.73237]
[1739445187011,0.04029901,2679.5,2679.2,3.73243]
[1739445189366,3.77233901,2679.5,2679.0,3.7326]
[1739445190222,0.7518,2679.4,2679.0,3.7326]
[1739445190630,0.03905449,2679.3,2679.0,3.7326]
[1739445191230,0.03905449,2679.3,2679.1,3.73259]
[1739445191548,0.03905449,2679.3,2679.1,3.73251]
[1739445198807,0.03905449,2679.3,2679.0,3.73272]
[1739445200012,4.59690594,2679.3,2678.8,3.73295]
[1739445200311,0.7942,2679.2,2678.8,3.73295]
[1739445200662,0.03901828,2679.1,2678.8,3.73295]
[1739445201475,3.73283,2679.0,2678.5,5.12526172]
[1739445201658,3.73287,2678.9,2678.5,3.7334]
[1739445201875,0.8113,2678.8,2678.4,3.73356]
[1739445202114,6.0913,2678.8,2678.4,3.73356]
[1739445202314,0.03890063,2678.7,2678.4,3.73356]
[1739445202484,0.03890063,2678.7,2678.3,3.73364]
[1739445202822,0.03890063,2678.6,2678.3,3.73359]
[1739445202983,0.03890063,2678.6,2678.3,3.73371]
[1739445203190,0.7836,2678.5,2678.3,3.73359]
[1739445203525,0.03890063,2678.4,2678.3,3.73359]
[1739445204974,0.03890063,2678.4,2678.2,3.73385]
[1739445205405,0.03890063,2678.4,2678.1,3.32709]
[1739445205604,0.03890063,2678.4,2678.1,7.06107]
[1739445207921,0.03890063,2678.4,2677.9,3.73419]
[1739445207922,0.7622,2678.3,2677.9,3.73419]
[1739445208328,0.03858838,2678.2,2677.9,3.73419]
[1739445208710,0.7622,2678.3,2677.9,3.73419]
[1739445208900,0.03848879,2678.1,2677.9,3.73418]
[1739445209079,0.7622,2678.3,2677.9,3.73418]
[1739445209279,0.03848879,2678.0,2677.9,3.73418]
[1739445209527,0.7622,2678.3,2678.0,3.73411]
[1739445210329,0.7622,2678.3,2677.8,4.43493]
[1739445210531,0.7622,2678.3,2677.9,3.73426]
[1739445211081,4.49591,2678.3,2677.9,3.73426]
[1739445211523,0.7622,2678.3,2677.9,7.46846]
[1739445211857,0.7622,2678.3,2677.9,3.7342]
[1739445212584,0.8166,2678.1,2677.6,3.0]
[1739445212836,4.55066,2678.1,2677.4,0.2709]
[1739445213033,4.55066,2678.1,2677.6,3.73461]
[1739445213181,4.55066,2678.1,2677.6,3.73468]
[1739445213182,0.8166,2678.1,2677.6,3.73468]
[1739445213615,0.8166,2678.1,2677.7,3.73445]
[1739445213824,4.5506,2678.1,2677.7,3.73445]
[1739445214983,4.5506,2678.1,2677.5,3.73478]
[1739445215183,4.5506,2678.1,2677.6,3.73464]
[1739445215184,8.2847,2678.1,2677.6,3.73464]
[1739445215424,4.5506,2678.1,2677.6,3.73464]
[1739445216581,0.0379999,2678.0,2677.6,3.73464]
[1739445217070,3.73447,2677.8,2677.2,3.73517]
[1739445217371,0.82612292,2677.7,2677.5,3.73473]
[1739445217544,0.82612292,2677.7,2677.6,3.73468]
[1739445217926,0.7882,2677.7,2677.4,3.73483]
[1739445218225,0.03778253,2677.6,2677.5,3.7348]
[1739445218550,0.03778253,2677.6,2677.2,8.20078962]
[1739445218880,0.03778253,2677.6,2677.3,3.73501]
[1739445219027,0.03778253,2677.6,2677.4,3.73488]
[1739445219781,0.03778253,2677.6,2677.5,3.73482]
[1739445224785,0.03778253,2677.6,2677.3,3.73509]
[1739445225687,5.31778253,2677.6,2677.3,3.73509]
[1739445225839,0.8107,2677.5,2677.3,3.73509]
[1739445226250,0.03633188,2677.4,2677.3,3.73509]
[1739445226455,0.03633188,2677.4,2676.9,7.00654]
[1739445226658,0.03633188,2677.4,2677.1,3.73535]
[1739445227238,3.77131188,2677.4,2676.9,6.73559]
[1739445227436,7.50637188,2677.4,2676.9,6.73559]
[1739445227736,3.77131188,2677.4,2676.9,6.73559]
[1739445227935,3.73513,2677.3,2676.9,6.73559]
[1739445228178,0.03620052,2677.2,2676.9,6.73559]
[1739445228389,3.73498,2677.4,2676.9,3.7356]
[1739445228586,0.03620052,2677.3,2676.9,3.7356]
[1739445228883,0.03620052,2677.3,2676.9,3.73558]
[1739445229533,0.03620052,2677.3,2676.8,0.7478864]
[1739445229534,0.8229,2677.2,2676.5,3.73613]
[1739445229771,0.8229,2677.0,2676.6,3.73601]
[1739445229977,0.03620052,2676.9,2676.6,3.73601]
[1739445230293,0.03620052,2676.9,2676.5,3.73613]
[1739445230591,0.03620052,2676.9,2676.8,3.7358]
[1739445230775,0.8229,2677.2,2676.8,4.482974]
[1739445231093,0.03620052,2677.1,2676.7,3.73594]
[1739445231291,0.03620052,2677.1,2676.9,3.73564]
[1739445232189,0.03620052,2677.1,2677.0,3.73552]
[1739445233887,6.0751,2677.4,2677.1,3.73536]
[1739445235593,6.0751,2677.4,2677.2,3.73511]
[1739445235746,6.0751,2677.4,2677.3,3.7351]
[1739445236095,5.28,2677.4,2677.3,3.7351]
[1739445236397,5.28,2677.4,2677.3,4.509211]
[1739445236959,7.46816,2678.1,2677.6,3.7346]
[1739445236960,0.8188,2677.9,2677.6,3.7346]
[1739445237193,0.8188,2677.9,2677.5,3.73481]
[1739445237761,0.8188,2677.9,2677.3,4.509111]
[1739445237980,4.55313,2677.9,2677.3,4.509101]
[1739445238176,4.55313,2677.9,2677.4,3.73494]
[1739445238690,4.55313,2677.9,2677.3,5.2663681]
[1739445238998,4.55313,2677.9,2677.4,3.73496]
[1739445239198,0.8188,2677.9,2677.3,1.5313781]
[1739445239505,0.8188,2677.9,2677.5,3.7347]
[1739445239995,0.8188,2677.9,2677.6,3.7346]
[1739445240139,0.8188,2677.9,2677.5,3.7347]
[1739445240344,0.8188,2677.9,2677.6,3.73464]
[1739445240759,0.8188,2677.9,2677.5,3.7347]
[1739445240974,0.8188,2677.9,2677.3,0.7572671]
[1739445241176,0.8188,2677.9,2677.7,3.7345]
[1739445242195,0.8188,2677.9,2677.6,3.73467]
[1739445242784,0.8188,2677.9,2677.5,3.73482]
[1739445243153,0.8188,2677.9,2677.7,3.73446]
[1739445243386,0.8188,2677.9,2677.8,3.7344]
[1739445244104,0.8188,2677.9,2677.4,0.40281671]
[1739445244105,0.8188,2677.9,2677.7,3.73453]
[1739445244896,0.8188,2677.9,2677.8,3.7344]
[1739445245822,0.7931,2678.1,2678.0,3.73412]
[1739445246002,5.28,2678.2,2678.1,3.73399]
[1739445246801,5.31563735,2678.2,2678.1,3.73399]
[1739445247262,5.31563735,2678.2,2678.0,3.73412]
[1739445249174,5.31563735,2678.2,2678.1,3.73399]
[1739445249381,5.31563735,2678.2,2678.0,3.73406]
[1739445250070,5.31563735,2678.2,2678.0,7.46807]
[1739445250395,5.31563735,2678.2,2678.0,3.73401]
[1739445250608,5.31563735,2678.2,2678.1,3.73399]
[1739445252970,5.31563735,2678.2,2678.0,3.73404]
[1739445253305,5.28,2678.2,2678.0,3.73404]
[1739445253738,5.28,2678.2,2678.1,3.73399]
[1739445256748,5.549,2678.3,2678.2,3.73385]
[1739445256943,3.73335,2678.6,2678.4,3.73357]
[1739445256944,5.549,2678.5,2678.4,3.73357]
[1739445263558,5.549,2678.5,2678.3,3.73371]
[1739445263757,5.549,2678.5,2678.3,3.7336]
[1739445263918,5.549,2678.5,2678.4,3.73357]
[1739445265320,5.549,2678.5,2678.3,3.7336]
[1739445266610,5.549,2678.5,2678.4,3.73357]
[1739445267106,5.549,2678.5,2678.2,3.73382]
[1739445267406,5.549,2678.5,2678.1,3.73388]
[1739445267602,5.549,2678.5,2678.3,3.7337]
[1739445268465,5.549,2678.5,2678.3,7.46732]
[1739445268679,5.549,2678.5,2678.4,3.73357]
[1739445268984,5.549,2678.5,2678.3,3.73362]
[1739445269327,5.549,2678.5,2678.1,3.73392]
[1739445269633,5.549,2678.5,2678.3,3.7337]
[1739445270609,5.549,2678.5,2678.4,3.73357]
[1739445271497,5.549,2678.5,2678.3,3.7337]
[1739445272317,5.549,2678.5,2678.1,3.73399]
[1739445272522,5.549,2678.5,2678.2,3.73372]
[1739445272734,5.549,2678.5,2678.3,3.73369]
[1739445273575,5.549,2678.5,2678.4,3.73357]
[1739445275233,5.549,2678.5,2678.2,3.73385]
[1739445275727,5.549,2678.5,2678.1,3.73389]
[1739445275924,4.49918,2678.4,2677.9,3.73418]
[1739445276781,0.7656,2678.4,2677.9,3.73418]
[1739445277128,0.7656,2678.4,2678.1,3.73389]
[1739445277278,0.7656,2678.4,2678.3,3.73371]
[1739445277480,5.28,2678.5,2678.3,3.73371]
[1739445278321,5.28,2678.5,2678.1,0.2709]
[1739445278477,9.01343,2678.5,2678.1,0.2709]
[1739445278793,9.01343,2678.5,2678.0,5.1268344]
[1739445279192,12.74694,2678.5,2678.0,5.1268344]
[1739445279384,9.01343,2678.5,2678.0,5.1268344]
[1739445279586,9.01343,2678.5,2678.0,3.73405]
[1739445280386,9.01343,2678.5,2678.0,7.46809]
[1739445280618,5.28,2678.5,2678.1,3.73387]
[1739445280933,9.01346,2678.5,2678.1,3.73387]
[1739445281725,9.01346,2678.5,2678.1,3.73397]
[1739445283430,9.01346,2678.5,2678.0,0.84856262]
[1739445283583,9.01346,2678.5,2678.0,4.58266262]
[1739445283779,5.28,2678.5,2678.1,4.59269126]
[1739445284014,9.01345,2678.5,2678.1,4.59269126]
[1739445284395,9.01345,2678.5,2677.9,3.73415]
[1739445284396,4.53109,2678.4,2677.9,3.73415]
[1739445284815,8.26477,2678.4,2677.9,3.73419]
[1739445285044,4.53109,2678.4,2677.9,3.73419]
[1739445285289,4.53109,2678.4,2678.0,3.73411]
[1739445286401,9.81109,2678.4,2678.0,3.73411]
[1739445287026,6.0775,2678.4,2678.1,3.73397]
[1739445287732,6.0775,2678.4,2678.0,3.73411]
[1739445289443,9.81109,2678.4,2677.9,3.73426]
[1739445291382,6.0775,2678.4,2678.0,3.73412]
[1739445291544,5.28,2678.4,2678.3,3.73371]
[1739445292436,6.3606,2678.6,2678.2,3.73384]
[1739445293355,9.82489,2678.6,2678.1,3.73398]
[1739445293933,6.0916,2678.6,2678.2,3.7338]
[1739445294731,9.82495,2678.6,2678.1,3.73395]
[1739445294911,9.82495,2678.6,2678.1,4.53662613]
[1739445297144,9.82495,2678.6,2678.1,0.80267613]
[1739445297443,13.55835,2678.6,2678.1,4.53659613]
[1739445298349,9.82495,2678.6,2678.1,4.53659613]
[1739445298547,13.55834,2678.6,2678.1,4.53659613]
[1739445298855,13.55834,2678.6,2678.2,0.48074961]
[1739445299565,9.82495,2678.6,2678.2,4.21453961]
[1739445299772,9.82495,2678.6,2678.2,0.48074961]
[1739445299974,6.0916,2678.6,2678.2,4.21450961]
[1739445300271,6.0916,2678.6,2678.4,3.7335]
[1739445300436,6.0916,2678.6,2678.4,4.52824296]
[1739445300623,5.28,2678.6,2678.4,4.52834296]
[1739445300965,5.28,2678.6,2678.4,0.79479296]
[1739445301129,5.28,2678.6,2678.2,4.21448961]
[1739445301542,0.7791,2678.5,2678.2,4.21448961]
[1739445301727,0.7791,2678.5,2678.2,7.94824961]
[1739445302367,5.28,2678.6,2678.2,0.48074961]
[1739445302873,5.28,2678.6,2678.4,3.73352]
[1739445303033,5.28,2678.6,2678.4,3.73346]
[1739445303775,5.28,2678.6,2678.2,3.73373]
[1739445303975,5.28,2678.6,2678.0,4.00494]
[1739445303976,3.73349,2678.5,2678.1,0.74192257]
[1739445304115,0.7971,2678.4,2678.0,3.73411]
[1739445304620,0.7971,2678.3,2677.9,3.73418]
[1739445305185,0.7971,2678.3,2677.9,7.46833]
[1739445305375,0.7971,2678.3,2677.9,3.73415]
[1739445305580,4.53081,2678.3,2677.9,3.73415]
[1739445306669,0.7971,2678.3,2677.9,3.73415]
[1739445307171,0.7971,2678.3,2677.8,0.74894722]
[1739445307317,5.28,2678.6,2678.1,3.73398]